bitfinex-derivatives/quotes_ETHF0:USTF0_20240829
["timestamp","ask_amount","ask_price","bid_price","bid_amount"]
[1724951830415,0.00223425,2568.2,2568.1,8.67204535]
[1724951830721,0.00223425,2568.2,2568.1,10.61866904]
[1724951830919,0.00223425,2568.2,2568.1,8.67204535]
[1724951833419,0.00223425,2568.2,2568.1,10.61865382]
[1724951833633,0.00223425,2568.2,2568.1,11.12825087]
[1724951833932,0.00223425,2568.2,2568.1,9.59945847]
[1724951834317,0.00223425,2568.2,2568.1,11.12825087]
[1724951834720,0.00223425,2568.2,2568.1,13.07484011]
[1724951835023,0.00223425,2568.2,2568.1,11.12823164]
[1724951835327,0.00223425,2568.2,2568.1,9.59943924]
[1724951836219,0.00223425,2568.2,2568.1,10.61775535]
[1724951836415,0.00223425,2568.2,2568.1,12.10137164]
[1724951836826,0.00223425,2568.2,2568.1,11.12823164]
[1724951837028,0.00223425,2568.2,2568.1,12.10137164]
[1724951837229,0.00223425,2568.2,2568.1,11.12823164]
[1724951837425,0.00223425,2568.2,2568.1,12.10137164]
[1724951839723,0.00223425,2568.2,2568.1,12.10135187]
[1724951840029,0.00223425,2568.2,2568.1,11.54569947]
[1724951840217,3.2078,2568.7,2568.6,0.38918]
[1724951840527,3.2078,2568.7,2568.6,3.75918]
[1724951841821,3.59696,2568.7,2568.6,3.75918]
[1724951843534,3.2078,2568.7,2568.6,3.75918]
[1724951844432,1.43578306,2568.9,2568.8,0.38915]
[1724951844825,0.00584306,2568.9,2568.8,0.38915]
[1724951845027,0.00584306,2568.9,2568.8,1.36202]
[1724951845332,0.00584306,2568.9,2568.8,2.37958184]
[1724951846132,0.00584306,2568.9,2568.8,1.40671184]
[1724951846332,0.00584306,2568.9,2568.8,1.36202]
[1724951846926,0.00584306,2568.9,2568.8,1.40671184]
[1724951847131,0.00584306,2568.9,2568.8,2.37958184]
[1724951847432,0.00584306,2568.9,2568.8,0.38915]
[1724951848134,0.00584306,2568.9,2568.8,1.36202]
[1724951848437,0.00584306,2568.9,2568.8,5.25482]
[1724951849833,0.00584306,2568.9,2568.8,6.22769]
[1724951850240,0.00584306,2568.9,2568.8,9.59769]
[1724951850535,0.00584306,2568.9,2568.8,51.41525184]
[1724951851531,0.00584306,2568.9,2568.8,53.36100184]
[1724951851732,4.2307,2569.3,2568.8,59.36100184]
[1724951851733,1.0229,2569.3,2568.8,59.36100184]
[1724951851933,1.0229,2569.3,2569.2,4.7318]
[1724951852337,1.0229,2569.3,2569.2,11.6533]
[1724951853035,1.0229,2569.3,2569.2,10.68058]
[1724951853242,1.0229,2569.3,2569.2,9.67318]
[1724951853631,1.0229,2569.3,2569.2,10.6459]
[1724951854133,0.00389534,2569.5,2569.4,1.36169]
[1724951854327,0.00389534,2569.5,2569.4,4.73169]
[1724951854532,0.00389534,2569.5,2569.4,3.75905]
[1724951855443,0.00389534,2569.5,2569.4,4.73169]
[1724951855951,0.00389534,2569.5,2569.4,3.75905]
[1724951857130,0.39293534,2569.5,2569.4,3.75905]
[1724951857327,0.38909,2569.2,2569.0,6.5778]
[1724951857533,1.9856,2569.1,2569.0,6.96692]
[1724951857937,2.3747,2569.1,2569.0,6.96692]
[1724951858135,1.9856,2569.1,2569.0,6.96692]
[1724951859546,0.9897,2569.1,2569.0,6.96692]
[1724951861943,0.9897,2569.1,2569.0,7.98582]
[1724951862140,0.9897,2569.1,2569.0,8.95862]
[1724951862338,1.41526,2569.4,2569.3,0.38907]
[1724951862636,2.49226,2569.4,2569.3,3.75907]
[1724951864047,2.49226,2569.4,2569.3,3.37]
[1724951864247,2.49226,2569.4,2569.3,3.75907]
[1724951864845,2.1032,2569.4,2569.3,3.75907]
[1724951869340,2.49225,2569.4,2569.3,3.75907]
[1724951869842,2.1032,2569.4,2569.3,3.75907]
[1724951870845,1.077,2569.4,2569.3,3.75907]
[1724951871241,1.46605,2569.4,2569.3,3.75907]
[1724951871443,1.077,2569.4,2569.3,3.75907]
[1724951872345,1.46605,2569.4,2569.3,3.75907]
[1724951873148,1.077,2569.4,2569.3,3.75907]
[1724951873345,1.46605,2569.4,2569.3,3.75907]
[1724951873549,5.35805,2569.4,2569.3,3.75907]
[1724951873746,5.94164,2569.4,2569.0,0.38911]
[1724951873944,0.97285,2568.9,2568.6,1.0234049]
[1724951874140,2.1274,2568.8,2568.7,3.75916]
[1724951874452,1.0528,2568.8,2568.7,3.75916]
[1724951875652,1.44195,2568.8,2568.7,3.75916]
[1724951875949,1.44195,2568.8,2568.6,0.00584306]
[1724951875950,0.38916,2568.7,2568.6,0.00584306]
[1724951876151,0.38916,2568.7,2568.6,0.39502306]
[1724951876550,0.38916,2568.7,2568.6,0.00584306]
[1724951876854,0.38916,2568.7,2568.6,0.39502306]
[1724951879748,0.38916,2568.7,2568.6,0.39502306]
[1724951880149,4.2606,2568.8,2568.7,0.38916]
[1724951880349,4.2606,2568.8,2568.7,3.75916]
[1724951880550,4.64975,2568.8,2568.7,3.75916]
[1724951881556,4.2606,2568.8,2568.7,3.75916]
[1724951882552,1.0528,2568.8,2568.7,3.75916]
[1724951883458,1.44195,2568.8,2568.7,3.75916]
[1724951883660,1.0528,2568.8,2568.7,3.75916]
[1724951886049,1.0528,2568.8,2568.7,4.73207]
[1724951886257,1.0746,2569.0,2568.9,0.38913]
[1724951886470,1.46372,2569.0,2568.9,0.38913]
[1724951886747,9.67888728,2569.0,2568.9,0.38913]
[1724951887058,8.21516728,2569.0,2568.9,0.38913]
[1724951887462,8.60428728,2569.0,2568.9,0.38913]
[1724951889258,8.60428728,2569.0,2568.7,3.75915]
[1724951889259,0.38915,2568.8,2568.7,3.75915]
[1724951889663,0.38915,2568.8,2568.7,4.77671184]
[1724951890663,4.2631,2569.1,2568.7,4.38756184]
[1724951890871,4.6522,2569.1,2569.0,3.37]
[1724951891068,3.2078,2569.1,2569.0,3.75912]
[1724951891363,3.2078,2569.1,2569.0,4.75182]
[1724951891567,3.2078,2569.1,2569.0,6.85212]
[1724951891771,3.2078,2569.1,2569.0,7.86968184]
[1724951892463,3.2078,2569.1,2569.0,6.85212]
[1724951893360,3.5969,2569.1,2569.0,6.85212]
[1724951893766,3.2078,2569.1,2569.0,6.85212]
[1724951894181,3.2078,2569.1,2569.0,7.86968184]
[1724951894379,3.2078,2569.1,2569.0,8.84248184]
[1724951894574,3.21169534,2569.5,2569.4,0.38905]
[1724951896178,3.21169534,2569.5,2569.4,1.43585]
[1724951896375,3.60073534,2569.5,2569.4,1.43585]
[1724951896574,3.60073534,2569.5,2569.4,1.0468]
[1724951896777,0.38905,2569.4,2569.3,1.01756184]
[1724951897085,0.38907,2569.3,2569.2,3.37]
[1724951897272,4.28107,2569.3,2569.2,3.37]
[1724951897580,8.54665531,2569.3,2569.2,3.37]
[1724951898083,8.54665531,2569.3,2569.0,2.01026184]
[1724951898084,0.3891,2569.1,2569.0,1.01756184]
[1724951898380,9.13026531,2569.3,2568.9,1.01756184]
[1724951898381,0.38912,2569.0,2568.9,1.01756184]
[1724951898775,0.38913,2568.9,2568.8,7.97456184]
[1724951898975,0.38913,2568.9,2568.8,8.90324994]
[1724951899186,0.38912,2569.0,2568.8,9.29238994]
[1724951899378,0.38912,2569.0,2568.9,1.0186735]
[1724951899788,0.38911,2569.1,2568.9,1.4078035]
[1724951900085,0.38911,2569.1,2569.0,3.37]
[1724951900790,4.5688,2569.2,2569.0,4.3886735]
[1724951901087,4.5688,2569.2,2569.0,3.37]
[1724951901284,4.5688,2569.2,2569.0,4.3886735]
[1724951901478,0.3891,2569.1,2569.0,4.3886735]
[1724951902790,4.1797,2569.2,2569.0,4.3886735]
[1724951903082,0.3891,2569.1,2569.0,3.37]
[1724951903282,0.3891,2569.1,2568.9,1.0186735]
[1724951903283,0.38912,2569.0,2568.9,1.0186735]
[1724951903477,0.38912,2569.0,2568.8,1.0186735]
[1724951903478,0.38913,2568.9,2568.8,1.0186735]
[1724951903679,1.43843,2568.9,2568.7,2.4238235]
[1724951903877,1.0493,2568.9,2568.8,1.0186735]
[1724951904080,1.0493,2568.9,2568.8,0.38915]
[1724951904479,1.0493,2568.9,2568.8,1.4078235]
[1724951904883,1.43843,2568.9,2568.8,1.4078235]
[1724951905085,1.43843,2568.9,2568.8,1.0186735]
[1724951905485,1.43843,2568.9,2568.8,0.38915]
[1724951905987,1.43843,2568.9,2568.7,2.4238235]
[1724951906185,1.43843,2568.9,2568.8,1.0186735]
[1724951906389,1.43843,2568.9,2568.8,1.4078235]
[1724951906780,0.38912,2569.0,2568.9,0.38913]
[1724951906981,0.38912,2569.0,2568.9,1.4078035]
[1724951907783,3.2078,2569.2,2568.9,1.0186735]
[1724951907985,3.2078,2569.2,2569.1,3.7591]
[1724951908785,3.59688,2569.2,2569.1,3.7591]
[1724951909494,3.59688,2569.2,2569.1,3.37]
[1724951909798,3.59688,2569.2,2569.0,1.9546]
[1724951909799,3.59688,2569.2,2569.0,2.3437]
[1724951909989,3.59688,2569.2,2569.1,0.3891]
[1724951910797,0.38912,2569.0,2568.9,4.3886735]
[1724951910998,0.38912,2569.0,2568.9,3.75913]
[1724951911295,3.2078,2569.2,2568.9,4.3886735]
[1724951911486,3.2078,2569.2,2569.1,0.3891]
[1724951911487,3.59689,2569.2,2569.1,0.3891]
[1724951911687,3.2078,2569.2,2569.1,3.7591]
[1724951911893,0.38906,2569.4,2569.3,0.38907]
[1724951912097,0.38906,2569.4,2569.3,3.75907]
[1724951912394,3.21169534,2569.5,2569.4,0.38905]
[1724951912696,3.21169534,2569.5,2569.4,1.4077235]
[1724951912994,3.21169534,2569.5,2569.4,7.29271237]
[1724951913495,3.21169534,2569.5,2569.4,9.79169513]
[1724951913693,3.21169534,2569.5,2569.4,15.79169513]
[1724951913894,3.21169534,2569.5,2569.4,56.59169513]
[1724951914291,3.21169534,2569.5,2569.4,56.59318655]
[1724951914495,3.2078,2569.9,2569.8,0.38899]
[1724951914699,3.2078,2569.9,2569.8,3.75899]
[1724951915196,3.2078,2569.9,2569.8,4.75039]
[1724951915383,2.14860351,2570.3,2569.8,4.75039]
[1724951915384,4.219,2570.3,2570.2,0.38893]
[1724951915588,4.60792,2570.3,2570.2,3.75893]
[1724951916092,4.219,2570.3,2570.2,3.75893]
[1724951916800,4.60792,2570.3,2570.2,3.75893]
[1724951917600,4.219,2570.3,2570.2,3.75893]
[1724951920201,1.0112,2570.3,2570.2,3.75893]
[1724951926703,1.40012,2570.3,2570.2,3.75893]
[1724951928197,1.0112,2570.3,2570.2,3.75893]
[1724951928709,0.38895,2570.1,2570.0,0.39480306]
[1724951929008,1.36133,2570.1,2570.0,0.00584306]
[1724951929198,9.5237856,2570.1,2570.0,0.00584306]
[1724951933712,8.1624556,2570.1,2570.0,0.00584306]
[1724951933909,4.219,2570.3,2570.0,3.89704306]
[1724951934106,4.60792,2570.3,2570.2,0.38893]
[1724951935914,4.219,2570.3,2570.2,0.38893]
[1724951936310,4.60792,2570.3,2570.2,0.38893]
[1724951938419,0.38893,2570.2,2570.1,4.75714]
[1724951938618,0.38893,2570.2,2570.1,0.38894]
[1724951939905,0.38895,2570.1,2570.0,0.00584306]
[1724951940108,1.36133,2570.1,2570.0,0.00584306]
[1724951940315,16.59524186,2570.1,2570.0,0.00584306]
[1724951940621,10.59524186,2570.1,2570.0,0.00584306]
[1724951940812,16.59524186,2570.1,2570.0,0.00584306]
[1724951944114,16.59524186,2570.1,2569.5,3.75903]
[1724951944115,0.38902,2569.6,2569.5,3.75903]
[1724951944415,0.97257,2569.6,2569.4,0.38905]
[1724951944616,0.38905,2569.4,2569.3,7.262]
[1724951945415,0.38905,2569.5,2569.4,0.38905]
[1724951945816,0.39488306,2569.6,2569.5,0.38904]
[1724951946010,0.00584306,2569.6,2569.5,3.75904]
[1724951946616,0.00584306,2569.6,2569.5,9.59626]
[1724951946814,0.00584306,2569.6,2569.5,10.56816]
[1724951949413,0.00584306,2569.6,2569.5,11.58667864]
[1724951949613,0.00584306,2569.6,2569.5,10.56816]
[1724951950416,0.00584306,2569.6,2569.5,17.58667864]
[1724951950622,3.59675,2570.2,2570.1,0.38895]
[1724951950922,0.38895,2570.2,2570.1,0.38895]
[1724951951121,3.59673,2570.3,2570.0,3.37]
[1724951951317,3.59673,2570.3,2570.2,0.38893]
[1724951951318,0.38893,2570.3,2570.2,0.38893]
[1724951951524,0.38893,2570.2,2570.1,1.40924]
[1724951951826,0.38893,2570.2,2570.1,0.38894]
[1724951952117,0.38893,2570.2,2569.8,2.0386]
[1724951952319,5.15731,2570.6,2570.0,3.37]
[1724951952509,0.38892,2570.3,2570.2,0.38892]
[1724951952718,0.38892,2570.3,2570.1,0.38894]
[1724951954426,0.38893,2570.2,2570.1,0.38894]
[1724951954627,0.38893,2570.2,2570.0,4.76755]
[1724951954927,1.0068,2570.1,2570.0,4.76755]
[1724951955919,3.2078,2570.3,2570.2,0.38893]
[1724951956122,3.2078,2570.3,2570.2,3.75893]
[1724951956723,3.2078,2570.3,2570.2,4.73603]
[1724951958333,3.2078,2570.3,2570.2,5.7519239]
[1724951959628,0.3889,2570.4,2570.3,0.38892]
[1724951959934,0.3889,2570.4,2570.3,1.40612]
[1724951960133,1.3546,2570.5,2570.4,0.3889]
[1724951960629,0.3889,2570.4,2570.3,2.4220039]
[1724951961436,1.3546,2570.5,2570.4,0.3889]
[1724951962127,0.9657,2570.5,2570.4,0.3889]
[1724951962428,1.35459,2570.5,2570.4,0.3889]
[1724951962822,3.2078,2570.6,2570.3,2.0330939]
[1724951963025,0.97206,2571.0,2570.7,0.38885]
[1724951963026,0.38885,2570.8,2570.7,0.38885]
[1724951963226,0.38885,2570.8,2570.7,3.75885]
[1724951965135,0.38886,2570.7,2570.6,1.35156]
[1724951966332,0.38885,2570.8,2570.6,1.35156]
[1724951967827,0.38885,2570.8,2570.7,0.38886]
[1724951968034,0.38885,2570.8,2570.6,1.35156]
[1724951968239,0.38885,2570.8,2570.7,0.38886]
[1724951970748,4.83976869,2570.9,2570.8,0.38884]
[1724951971339,5.13316,2571.0,2570.9,0.38883]
[1724951971340,4.1611,2571.0,2570.9,0.38883]
[1724951971739,0.9533,2571.0,2570.9,0.38883]
[1724951972840,0.38883,2570.9,2570.7,3.37]
[1724951973040,0.38883,2570.9,2570.8,0.38884]
[1724951973942,0.38884,2570.8,2570.7,3.75885]
[1724951974338,0.38884,2570.9,2570.7,3.75885]
[1724951974541,0.38884,2570.8,2570.7,3.75885]
[1724951974739,0.38883,2570.9,2570.8,0.38884]
[1724951975045,4.54992,2571.0,2570.8,0.38884]
[1724951975244,4.1611,2571.0,2570.9,0.38883]
[1724951975945,1.34211,2571.0,2570.9,0.38883]
[1724951976244,0.9533,2571.0,2570.9,0.38883]
[1724951976849,1.34211,2571.0,2570.9,0.38883]
[1724951977052,0.9533,2571.0,2570.9,0.38883]
[1724951977546,1.34211,2571.0,2570.9,0.38883]
[1724951978453,0.9533,2571.0,2570.9,0.38883]
[1724951979654,1.34211,2571.0,2570.9,0.38883]
[1724951982254,0.9533,2571.0,2570.9,0.38883]
[1724951984055,1.34211,2571.0,2570.9,0.38883]
[1724951984353,0.9533,2571.0,2570.9,0.38883]
[1724951984851,0.9533,2571.0,2570.9,3.75883]
[1724951986161,1.34211,2571.0,2570.9,3.37]
[1724951986456,2.94934,2571.0,2570.7,3.37]
[1724951986661,0.38884,2570.8,2570.7,3.37]
[1724951987770,1.32834,2570.8,2570.7,3.37]
[1724951988149,1.32834,2570.8,2570.5,3.76473306]
[1724951988150,0.38887,2570.6,2570.5,3.76473306]
[1724951989054,0.38887,2570.7,2570.6,0.38887]
[1724951989251,3.59667,2570.7,2570.6,0.38887]
[1724951990448,0.38887,2570.6,2570.5,3.37584306]
[1724951990655,1.41107,2570.6,2570.5,3.37584306]
[1724951991255,2.38326,2570.6,2570.5,0.00584306]
[1724951991457,10.74394325,2570.6,2570.5,0.00584306]
[1724951992155,9.77175325,2570.6,2570.5,0.00584306]
[1724951993455,10.74394325,2570.6,2570.5,0.00584306]
[1724951994061,11.71613325,2570.6,2570.5,0.00584306]
[1724951994657,0.38895,2570.1,2570.0,1.0158939]
[1724951994861,0.97225,2570.5,2569.9,4.3858939]
[1724951994862,0.38896,2570.0,2569.9,4.3858939]
[1724951995061,0.38896,2570.0,2569.9,3.37]
[1724951995766,0.38896,2570.0,2569.7,0.00584306]
[1724951995767,0.38899,2569.8,2569.7,0.00584306]
[1724951995959,3.59679,2569.8,2569.7,0.00584306]
[1724951996373,4.57519,2569.8,2569.7,0.00584306]
[1724951997559,8.46639,2569.8,2569.7,0.00584306]
[1724951997762,12.66423362,2569.8,2569.7,0.00584306]
[1724951998664,13.63672362,2569.8,2569.7,0.00584306]
[1724951999261,12.66423362,2569.8,2569.7,0.00584306]
[1724952002858,13.63672362,2569.8,2569.7,0.00584306]
[1724952003266,14.60921362,2569.8,2569.7,0.00584306]
[1724952003570,0.38907,2569.3,2569.2,4.72808]
[1724952003970,4.18041,2569.5,2569.2,4.339]
[1724952004176,4.18041,2569.5,2569.2,4.72808]
[1724952004177,0.38907,2569.3,2569.2,4.72808]
[1724952004374,4.18041,2569.5,2569.2,4.72808]
[1724952004375,4.14073298,2569.4,2569.3,0.38907]
[1724952004573,4.52980298,2569.4,2569.2,4.72808]
[1724952006177,0.38907,2569.3,2569.2,4.72808]
[1724952006576,4.52979298,2569.4,2569.3,0.38907]
[1724952007171,0.38907,2569.3,2569.2,4.72808]
[1724952007678,1.36777,2569.3,2569.2,4.72808]
[1724952008275,0.9787,2569.3,2569.2,4.72808]
[1724952008476,3.2078,2569.5,2569.4,0.38905]
[1724952008976,7.89812637,2569.5,2569.4,0.38905]
[1724952009379,4.69032637,2569.5,2569.4,0.38905]
[1724952011868,0.38907,2569.3,2569.2,1.35807]
[1724952012176,0.38907,2569.3,2569.0,48.70724306]
[1724952012177,0.3891,2569.1,2569.0,0.00584306]
[1724952012378,0.38909,2569.2,2569.1,0.3891]
[1724952012577,3.2078,2569.5,2569.1,0.9482]
[1724952012776,0.38904,2569.5,2569.4,0.38904]
[1724952013869,0.38905,2569.4,2569.3,2.32946]
[1724952014070,0.38905,2569.4,2569.2,3.37]
[1724952014071,0.38907,2569.3,2569.2,0.38908]
[1724952014271,1.37637,2569.3,2569.2,0.38908]
[1724952014773,0.38908,2569.2,2569.1,1.33729]
[1724952018079,1.37638,2569.3,2569.2,0.38908]
[1724952018283,0.9873,2569.3,2569.2,0.38908]
[1724952019172,1.37637,2569.3,2569.2,0.38908]
[1724952019380,0.38908,2569.2,2569.1,1.33729]
[1724952019588,1.37638,2569.3,2569.2,0.38908]
[1724952019886,0.38906,2569.4,2569.3,0.38906]
[1724952020082,1.38555,2569.5,2569.4,0.38905]
[1724952020281,3.2078,2569.6,2569.5,0.38904]
[1724952020482,3.59679,2569.9,2569.8,0.38899]
[1724952021986,0.16870152,2570.1,2570.0,0.38896]
[1724952022185,0.16870152,2570.1,2570.0,3.75896]
[1724952022392,0.16870152,2570.1,2570.0,8.62258]
[1724952022685,0.00584306,2570.2,2570.1,0.38895]
[1724952022881,0.00584306,2570.2,2570.1,6.19883]
[1724952023282,0.00584306,2570.2,2570.1,46.99883]
[1724952023878,0.00584306,2570.2,2570.1,46.02645]
[1724952025582,0.39477306,2570.2,2570.1,3.8912]
[1724952026993,0.39477306,2570.2,2570.0,5.66515]
[1724952027294,0.39477306,2570.2,2570.0,9.55635]
[1724952027295,0.38895,2570.1,2570.0,9.55635]
[1724952027789,0.39478306,2570.2,2570.0,9.55635]
[1724952028184,0.00584306,2570.2,2570.1,0.38895]
[1724952028587,0.00584306,2570.2,2570.1,4.28015]
[1724952030993,0.39477306,2570.2,2570.1,4.28015]
[1724952031192,0.00584306,2570.2,2570.1,4.28015]
[1724952031492,0.39477306,2570.2,2570.1,4.28015]
[1724952031690,0.00584306,2570.2,2570.1,4.28015]
[1724952032081,0.00584306,2570.2,2570.1,3.8912]
[1724952032288,1.39077306,2570.2,2570.1,4.28015]
[1724952033485,0.00584306,2570.2,2570.1,4.28015]
[1724952033688,3.59666,2570.7,2570.6,0.38887]
[1724952033890,3.2078,2570.7,2570.6,3.75887]
[1724952038604,0.996,2570.8,2570.7,0.38886]
[1724952038804,0.39467306,2570.9,2570.7,0.38886]
[1724952038995,0.39467306,2570.9,2570.8,3.37]
[1724952039191,0.00584306,2570.9,2570.8,3.75884]
[1724952039496,0.39467306,2570.9,2570.8,3.75884]
[1724952039698,0.39467306,2570.9,2570.8,3.37]
[1724952040404,0.38884,2570.8,2570.6,3.75887]
[1724952040609,1.34094,2570.8,2570.6,3.75887]
[1724952040900,0.39467306,2570.9,2570.7,0.38886]
[1724952041112,0.00584306,2570.9,2570.8,3.37]
[1724952041407,0.39467306,2570.9,2570.8,3.37]
[1724952041710,0.39467306,2570.9,2570.7,0.38885]
[1724952044398,0.00584306,2570.9,2570.8,0.38884]
[1724952045107,0.39468306,2570.9,2570.7,0.38885]
[1724952045596,0.39468306,2570.9,2570.8,0.38884]
[1724952046206,0.00584306,2570.9,2570.8,0.38884]
[1724952046602,0.00584306,2570.9,2570.8,3.75884]
[1724952047507,0.00584306,2570.9,2570.8,4.73095]
[1724952048606,0.00584306,2570.9,2570.8,3.75884]
[1724952049101,0.00584306,2570.9,2570.8,4.73095]
[1724952049408,0.00584306,2570.9,2570.8,8.62055]
[1724952049707,0.00584306,2570.9,2570.8,7.64844]
[1724952049904,0.97213,2570.8,2570.5,0.9469]
[1724952050105,0.97213,2570.8,2570.4,0.00584306]
[1724952050106,0.38889,2570.5,2570.4,0.00584306]
[1724952050307,1.36112,2570.5,2570.4,0.00584306]
[1724952050509,2.30872,2570.5,2570.4,0.00584306]
[1724952050702,1.33649,2570.5,2570.4,0.39474306]
[1724952052401,1.33649,2570.5,2570.4,0.00584306]
[1724952052599,5.51652,2570.5,2570.4,0.00584306]
[1724952053812,4.54429,2570.5,2570.4,0.00584306]
[1724952056006,5.51652,2570.5,2570.4,0.00584306]
[1724952057509,2.30872,2570.5,2570.4,0.00584306]
[1724952059105,5.51652,2570.5,2570.4,0.00584306]
[1724952060501,6.48875,2570.5,2570.4,0.00584306]
[1724952061805,10.37915,2570.5,2570.4,0.00584306]
[1724952062114,14.77622734,2570.5,2570.4,0.00584306]
[1724952062709,9.91359734,2570.5,2570.4,0.00584306]
[1724952063415,13.80399734,2570.5,2570.4,0.00584306]
[1724952063602,9.91359734,2570.5,2570.4,0.00584306]
[1724952064915,8.94136734,2570.5,2570.4,0.00584306]
[1724952065515,9.91359734,2570.5,2570.4,0.00584306]
[1724952066510,14.77622734,2570.5,2570.4,0.00584306]
[1724952067513,9.91359734,2570.5,2570.4,0.00584306]
[1724952068009,8.94136734,2570.5,2570.4,0.00584306]
[1724952068407,8.94136734,2570.5,2570.4,0.39474306]
[1724952068911,8.94136734,2570.5,2570.4,0.00584306]
[1724952069219,8.94136734,2570.5,2570.4,0.39474306]
[1724952069220,8.55247734,2570.5,2570.4,0.39474306]
[1724952070022,8.94136734,2570.5,2570.4,0.39474306]
[1724952070217,8.55247734,2570.5,2570.4,0.39474306]
[1724952070415,8.94136734,2570.5,2570.4,0.39474306]
[1724952070611,8.55247734,2570.5,2570.4,0.39474306]
[1724952071019,9.91359734,2570.5,2570.4,0.00584306]
[1724952071222,8.94136734,2570.5,2570.4,0.00584306]
[1724952071422,4.54429,2570.5,2570.4,0.00584306]
[1724952072615,4.54429,2570.5,2570.4,0.39474306]
[1724952073409,2.11202437,2570.8,2570.4,7.26624306]
[1724952073410,3.2078,2570.8,2570.4,7.26624306]
[1724952073610,3.2078,2570.8,2570.6,0.38887]
[1724952073611,0.38886,2570.7,2570.6,0.38887]
[1724952074821,1.37915,2570.8,2570.7,0.38886]
[1724952075023,0.9719,2571.4,2570.7,3.37]
[1724952075222,3.2078,2571.9,2571.6,0.38871]
[1724952075417,3.2078,2571.9,2571.6,3.37]
[1724952075721,3.2078,2571.9,2571.2,1.0158939]
[1724952075722,8.22659202,2571.8,2571.2,44.55878]
[1724952075917,4.33779202,2571.8,2571.2,44.17]
[1724952076234,4.33779202,2571.8,2571.4,3.37]
[1724952076919,4.33779202,2571.8,2571.1,4.4902]
[1724952076920,3.2078,2571.5,2571.1,4.4902]
[1724952077127,2.9453,2571.4,2571.1,3.546]
[1724952077427,0.38877,2571.3,2571.1,3.546]
[1724952077615,0.38877,2571.3,2571.0,3.37]
[1724952077827,3.59661,2571.1,2570.8,4.8776]
[1724952078021,3.59661,2571.1,2570.8,0.9876]
[1724952078217,0.9948,2571.0,2570.8,0.9876]
[1724952079415,0.9948,2571.0,2570.8,2.00488434]
[1724952079619,1.38362,2571.0,2570.8,2.00488434]
[1724952079825,0.9031,2570.9,2570.7,4.38728434]
[1724952080126,3.2078,2570.8,2570.6,1.01728434]
[1724952080325,3.59665,2570.8,2570.5,8.91388434]
[1724952080624,3.2078,2570.8,2570.5,8.91388434]
[1724952080822,0.38889,2570.5,2570.4,0.00584306]
[1724952081129,7.96380748,2570.5,2570.4,0.00584306]
[1724952081322,11.46531748,2570.5,2570.4,0.00584306]
[1724952081524,7.57491748,2570.5,2570.4,0.00584306]
[1724952083629,7.96380748,2570.5,2570.4,0.00584306]
[1724952084126,7.57491748,2570.5,2570.4,0.00584306]
[1724952084630,11.85420748,2570.5,2570.4,0.00584306]
[1724952085227,12.81660748,2570.5,2570.4,0.00584306]
[1724952086226,11.85420748,2570.5,2570.4,0.00584306]
[1724952086529,7.57491748,2570.5,2570.4,0.39474306]
[1724952086824,7.57491748,2570.5,2570.4,0.00584306]
[1724952087525,7.57491748,2570.5,2570.4,0.39474306]
[1724952087927,3.2078,2570.5,2570.4,0.39474306]
[1724952089028,3.2078,2570.8,2570.7,0.38886]
[1724952089631,3.2078,2570.8,2570.7,3.75886]
[1724952090025,1.9588,2571.4,2570.7,8.66573034]
[1724952090026,0.9869,2571.4,2570.7,8.66573034]
[1724952090232,1.31436,2571.4,2571.2,0.38878]
[1724952090527,0.38877,2571.3,2571.1,0.38879]
[1724952090726,0.38877,2571.3,2571.1,0.3888]
[1724952091233,0.38877,2571.3,2571.0,2.2548]
[1724952091832,4.89166001,2571.2,2571.0,0.9599]
[1724952092333,0.9256,2571.4,2571.0,0.38881]
[1724952092334,4.89166001,2571.3,2571.0,0.38881]
[1724952092535,0.9256,2571.4,2570.9,0.38882]
[1724952092536,4.48123714,2571.1,2570.9,0.38882]
[1724952092735,4.87002714,2571.2,2570.9,0.38882]
[1724952092930,0.9838,2571.0,2570.9,0.38882]
[1724952094635,0.38878,2571.3,2571.0,0.3888]
[1724952094932,4.15846964,2571.1,2570.8,1.40602099]
[1724952095132,0.38882,2571.0,2570.8,1.01718099]
[1724952095324,1.37262,2571.0,2570.7,2.38743099]
[1724952095528,0.89206108,2570.9,2570.7,0.9814]
[1724952095726,0.50323108,2570.9,2570.5,4.38718099]
[1724952095926,0.38887,2570.7,2570.4,5.88152405]
[1724952096237,0.38889,2570.5,2570.4,0.00584306]
[1724952096837,0.9783,2570.5,2570.4,0.00584306]
[1724952097235,1.36719,2570.5,2570.4,0.00584306]
[1724952098937,9.4424844,2570.5,2570.4,0.00584306]
[1724952100236,10.4147144,2570.5,2570.4,0.00584306]
[1724952100536,11.3563144,2570.5,2570.4,0.00584306]
[1724952101630,14.5641144,2570.5,2570.4,0.00584306]
[1724952105338,15.5363444,2570.5,2570.4,0.00584306]
[1724952106238,14.5641144,2570.5,2570.4,0.00584306]
[1724952107735,14.74626479,2570.5,2570.4,0.00584306]
[1724952109547,10.85586479,2570.5,2570.4,0.00584306]
[1724952109745,14.74626479,2570.5,2570.4,0.00584306]
[1724952110048,10.85586479,2570.5,2570.4,0.00584306]
[1724952110843,9.88363479,2570.5,2570.4,0.00584306]
[1724952111748,7.3926944,2570.5,2570.4,0.39474306]
[1724952112449,7.3926944,2570.5,2570.4,1.13194306]
[1724952113344,7.3926944,2570.5,2570.4,0.00584306]
[1724952113345,8.7538144,2570.5,2570.4,0.00584306]
[1724952114751,7.7815844,2570.5,2570.4,0.00584306]
[1724952115360,7.7815844,2570.5,2570.4,0.39474306]
[1724952115361,7.3926944,2570.5,2570.4,0.39474306]
[1724952116658,7.7815844,2570.5,2570.4,0.39474306]
[1724952116855,7.3926944,2570.5,2570.4,0.39474306]
[1724952117755,7.7815844,2570.5,2570.4,0.39474306]
[1724952118050,7.3926944,2570.5,2570.4,0.39474306]
[1724952118259,7.3926944,2570.5,2570.4,5.25741306]
[1724952118260,4.1848944,2570.5,2570.4,5.25741306]
[1724952118558,4.14995569,2570.8,2570.7,0.38886]